Cogmind - Beta 13 X1 @@@ ROGUE MODE // 2023.09.22 @ 12:53:21 Player: DuckBoy Result: Destroyed by S-27 Virus with Autogun Performance ------------- Evolutions (4) 2000 Regions Visited (14) 2800 Robots Destroyed (181) 905 Value Destroyed (6020) 6020 Prototype IDs (4) 80 Alien Tech Used (0) 0 Bonus (5976) 5976 TOTAL SCORE: 17781 Bonus ------- High Alert Combat Kills 280 Follower Combat Kills 4662 Entered Garrisons 200 Used RIF Installer 1000 Friendly Fire -166 Cogmind --------- Core Integrity 0/850 Matter 282/300 Energy 22/100 System Corruption 0% Temperature Cool (0) Movement Rolling (115) Ox1 Location -6/Lower Caves Parts ------- > --- POWER (1) -------- (None) > --- PROPULSION (4) --- Armored Huge Wheel > --- UTILITY (8) ------ Large Storage Unit Structural Scanner Machine Analyzer Improved Utility Shielding Relay Coupler [NC] (8) Relay Coupler [Duelist] (2) > --- WEAPON (2) ------- Slug Cannon Chainsword > --- INVENTORY (15) --- Armored Wheel 0b10 Decoder Chip [Skirmisher] Improved System Shield Relay Coupler [Swarmer] (31) Relay Coupler [Behemoth] (9) Improved System Restoration Module Plasma Rifle Heavy Ion Cannon Heavy Plasma Cannon Improved Remote Datajack Peak State ------------ > --- POWER ------------ Micro Fission Core > --- PROPULSION ------- Armored Huge Wheel Armored Huge Wheel > --- UTILITY ---------- Large Storage Unit Machine Analyzer Makeshift Transmission Jammer Hacking Suite System Shield Relay Coupler [Grunt] Relay Coupler [Sentry] Relay Coupler [Hunter] > --- WEAPON ----------- Improved Remote Datajack Power Sword > --- INVENTORY -------- Armored Wheel Structural Scanner Improved Utility Shielding Improved Powered Armor Relay Coupler [Swarmer] Relay Coupler [Duelist] Relay Coupler [Hunter] Improved System Restoration Module Plasma Rifle Heavy Ion Cannon Chainsword [Rating: 64] Favorites ----------- Power Improved Deuterium Engine Engine Improved Deuterium Engine Power Core Micro Fission Core Propulsion Armored Huge Wheel Treads Light Treads Leg Aluminum Leg Wheel Armored Huge Wheel Flight Unit Cesium-ion Thruster Utility Large Storage Unit Device Structural Scanner Storage Large Storage Unit Processor Machine Analyzer Hackware System Shield Protection Hardened Light Armor Plating Weapon Great Axe Energy Gun Plasma Rifle Energy Cannon Ion Cannon Ballistic Gun High-powered Shotgun Ballistic Cannon Flak Cannon Special Weapon Remote Datajack Impact Weapon Heavy Mace Slashing Weapon Great Axe Special Melee Weapon Datajack Build | -11 -10 -9 -9 -8 -8 -8 -7 -7 -7 -7 -6 -6 -6 -6 ------- Run | Jun Mat Mat Min Mat Gar Mat Fac Low Low Zio Pro Fac Low Low Slots Evolved 8 | . . 2 . 2 . . 2 . . . . 2 . . Power . | . . . . . . . . . . . . . . . Propulsion 2 | . . . . . . . 1 . . . . 1 . . Utility 6 | . . 2 . 2 . . 1 . . . . 1 . . Weapon . | . . . . . . . . . . . . . . . Parts Attached 206 | 6 2 21 6 3 23 19 47 1 12 . 3 50 8 5 Power 18 | 1 . 1 2 . 2 4 4 . . . . 2 2 . Engine 12 | 1 . 1 1 . 1 3 4 . . . . 1 . . Core 6 | . . . 1 . 1 1 . . . . . 1 2 . Reactor . | . . . . . . . . . . . . . . . Propulsion 34 | 2 . 7 2 . 6 4 9 . 2 . 1 1 . . Treads 4 | . . . 2 . 2 . . . . . . . . . Leg 3 | . . . . . 2 . 1 . . . . . . . Wheel 25 | 2 . 5 . . 2 4 8 . 2 . 1 1 . . Hover . | . . . . . . . . . . . . . . . Flight 2 | . . 2 . . . . . . . . . . . . Utility 95 | 1 2 7 1 2 4 7 26 1 8 . 2 30 3 1 Device 25 | . 1 . 1 1 1 . 6 1 5 . 1 6 2 . Storage 6 | 1 1 2 . . . 1 . . . . . . 1 . Processor 7 | . . 1 . 1 . 3 1 . . . . 1 . . Hackware 33 | . . . . . 1 . 16 . . . . 16 . . Protection 24 | . . 4 . . 2 3 3 . 3 . 1 7 . 1 Artifact . | . . . . . . . . . . . . . . . Weapon 59 | 2 . 6 1 1 11 4 8 . 2 . . 17 3 4 Energy Gun 13 | 2 . 1 . . . 3 2 . 1 . . 3 . 1 Energy Cannon 7 | . . . . . 3 . 1 . . . . 3 . . Ballistic Gun 12 | . . 5 1 . 6 . . . . . . . . . Ballistic Cannon 4 | . . . . 1 1 . . . . . . . 1 1 Launcher . | . . . . . . . . . . . . . . . Special Weapon 9 | . . . . . . . . . 1 . . 7 1 . Impact Weapon 1 | . . . . . . 1 . . . . . . . . Slashing Weapon 8 | . . . . . . . 1 . . . . 4 1 2 Piercing Weapon . | . . . . . . . . . . . . . . . Special Melee Weapon 5 | . . . . . 1 . 4 . . . . . . . Unidentified Prototypes 4 | . . 2 . . . 1 . . . . . 1 . . Corrupted Parts 1 | . . . . . . . . . 1 . . . . . System Corruption 1 | . . . . . . . . . 1 . . . . . Parts Lost 43 | . . 2 1 . 9 8 9 . 1 . 1 5 2 5 Power 8 | . . 2 . . 1 2 1 . . . . . 1 1 Propulsion 9 | . . . . . 2 2 3 . . . 1 . . 1 Utility 15 | . . . . . 2 3 3 . . . . 4 1 2 Weapon 11 | . . . 1 . 4 1 2 . 1 . . 1 . 1 Highest Loss Streak 5 | . . 1 1 . 4 5 3 . 1 . 1 2 1 5 To Critical Strikes . | . . . . . . . . . . . . . . . Average Slot Usage (%) 87 | . 98 95 97 95 89 90 83 91 91 92 89 84 81 73 Engine 5 | . 14 9 8 . 3 2 6 7 7 7 7 3 . . Core 1 | . . . . 9 1 4 . . . . . 2 5 3 Treads 2 | . . . 14 18 13 . . . . . . . . . Wheel 12 | . 28 21 7 . . 14 13 15 15 15 12 12 13 10 Device 8 | . 12 11 11 16 7 4 5 14 12 15 9 6 6 6 Storage 7 | . 14 11 11 9 9 9 7 7 7 7 7 6 6 6 Processor 12 | . . 7 11 15 18 16 14 15 15 15 15 9 6 6 Hackware 14 | . . . . . 7 8 11 15 15 15 15 25 21 14 Protection 5 | . . 12 11 9 7 11 7 . 1 . 4 2 6 10 Energy Gun 1 | . 28 2 . . . 5 . . . . . . 2 . Ballistic Gun 3 | . . 19 21 12 10 . . . . . . . . . Special Weapon 2 | . . . . . . . . . 2 7 7 5 4 . Slashing Weapon 4 | . . . . . . . 4 7 7 7 7 5 4 6 Special Melee Weapon 1 | . . . . . . 3 3 7 4 . . . . . Naked Turns . | . . . . . . . . . . . . . . . Heaviest Build 58 | 11 17 38 37 42 43 47 50 37 41 39 44 58 50 50 Greatest Support 56 | 26 26 26 40 40 40 26 38 38 38 38 40 56 56 56 Greatest Overweight (x) 10 | . . 3 1 1 2 10 4 . 1 1 1 1 . 1 Average Overweight (x) . | . . . . . . 1 . . . 1 . . . . Largest Inventory Capacity 15 | 8 10 15 15 15 15 15 15 15 15 15 15 15 15 15 Average Capacity 14 | 6 9 13 15 15 15 15 15 15 15 15 15 15 15 15 Most Carried 15 | 4 10 15 15 15 15 15 15 11 15 15 15 15 13 12 Average Carried 13 | 2 7 13 14 14 14 14 12 10 14 15 14 13 11 10 Final Capacity 15 | 8 10 15 15 15 15 15 15 15 15 15 15 15 15 15 Final Carried 15 | 4 10 15 14 15 15 15 11 11 15 15 15 10 12 10 Class Distribution -------------------- 55% | Commander-Mutant 30% | Mutant 7% | Scavenger-Mutant 6% | Bothacker-Mutant Dominant Class ---------------- Mutant | -10/Materials Mutant | -9/Materials Mutant | -9/Mines Mutant | -8/Materials Mutant | -8/Garrison Scavenger-Mutant | -8/Materials Mutant | -7/Factory Commander-Mutant | -7/Lower Caves Commander-Mutant | -7/Lower Caves Commander-Mutant | -7/Zion Commander-Mutant | -6/Proximity Caves Commander-Mutant | -6/Factory Bothacker-Mutant | -6/Lower Caves Bothacker-Mutant | -6/Lower Caves Resources | -11 -10 -9 -9 -8 -8 -8 -7 -7 -7 -7 -6 -6 -6 -6 ----------- Run | Jun Mat Mat Min Mat Gar Mat Fac Low Low Zio Pro Fac Low Low Matter Collected 3788 | 197 83 873 147 34 469 205 500 10 125 . 55 929 118 43 Remotely . | . . . . . . . . . . . . . . . Salvage Created 6895 | . 167 1206 178 34 759 899 1229 . 195 . 123 1285 556 264 Parts 385 | . 12 80 13 4 45 38 69 . 8 . 3 81 21 11 Haulers Intercepted 4 | . 1 2 . . . . . . 1 . . . . . Recyclers Shooed 9 | . . 2 . . . 4 . . . . . 3 . . Parts Field Recycled . | . . . . . . . . . . . . . . . Retrieved Matter . | . . . . . . . . . . . . . . . Parts Self-Destructed 135 | . . . . . . . . 22 51 . 13 . 42 7 Prevented 7 | . . . . . . . . 7 . . . . . . Kills | -11 -10 -9 -9 -8 -8 -8 -7 -7 -7 -7 -6 -6 -6 -6 ------- Run | Jun Mat Mat Min Mat Gar Mat Fac Low Low Zio Pro Fac Low Low Combat Hostiles Destroyed 127 | . 2 23 5 4 24 14 19 . 1 . 2 17 10 6 Melee 39 | . . . . . . 2 9 . 1 . 2 11 10 4 Guns 54 | . 2 23 5 4 14 2 1 . . . . 3 . . Cannons 22 | . . . . . 9 6 2 . . . . 3 . 2 Classes Destroyed 16 | . 4 6 2 . 1 1 1 . 1 . . . . . Worker 19 | . . 6 1 . . 3 9 . . . . . . . Builder 6 | . 1 . . . . . 4 . . . . 1 . . Tunneler 6 | . . . 1 . . . 1 . . . . 4 . . Hauler 4 | . 1 2 . . . . . . 1 . . . . . Recycler 7 | . . 3 . . . 2 . . . . . 2 . . Minesweeper 1 | . . . . . . . . . 1 . . . . . Operator 2 | . . 1 . . . . 1 . . . . . . . Watcher 9 | . 1 4 . . . 2 1 . . . . 1 . . Swarmer 28 | . . 7 1 4 10 3 . . . . . . 1 2 Grunt 51 | . 2 7 3 . 8 5 13 . . . 2 3 4 4 Brawler 1 | . . 1 . . . . . . . . . . . . Duelist 4 | . . . . . . 2 1 . . . . 1 . . Sentry 21 | . . 8 . . 4 4 . . . . . 2 3 . Hunter 7 | . . . . . 2 . 2 . . . . 3 . . Programmer 15 | . . . . . . . 3 . 1 . . 9 2 . Decomposer 1 | . . . . . . . . . 1 . . . . . Assembled 1 | . . . 1 . . . . . . . . . . . Best Kill Streak 10 | . 2 10 2 4 5 5 5 . 1 . 2 3 3 6 Combat Bots Only 6 | . 2 4 2 4 5 5 3 . 1 . 2 3 3 6 Max Kills in Single Turn 2 | . 1 1 2 1 2 1 1 . 1 . 1 1 1 1 Gunslinging 1 | . . . . . 1 . . . . . . . . . Exploded . | . . . . . . . . . . . . . . . Melee 1 | . . . . . . 1 1 . 1 . 1 1 1 1 Uniques/NPCs Destroyed . | . . . . . . . . . . . . . . . Combat | -11 -10 -9 -9 -8 -8 -8 -7 -7 -7 -7 -6 -6 -6 -6 -------- Run | Jun Mat Mat Min Mat Gar Mat Fac Low Low Zio Pro Fac Low Low Damage Taken 10347 | . 35 813 137 132 1210 1424 1897 105 352 . 202 1793 1328 919 Core 1789 | . . 198 . 6 111 273 272 19 59 . . 477 138 236 Absorbed by Shields 1005 | . . . . . 75 . 16 68 154 . 43 324 220 105 Redirected to Shielding 135 | . . 100 . . . . . . 17 . 9 . . 9 Ignored by Resistances 60 | . . . . . . . 60 . . . . . . . Regen/Repaired (Parts) 2083 | . . . . . . . 171 37 237 . 136 752 750 . Core Remaining (%) 65 | 100 100 . 50 . . 29 . . . . 50 . . . Volleys Fired 409 | . 17 101 12 8 55 77 18 . 2 . 5 102 7 5 Largest 2 | . 2 2 2 2 2 2 1 . 1 . 1 2 2 2 Hottest 140 | . 90 90 50 69 85 122 65 . 5 . 5 140 123 123 Shots Fired 596 | . 32 199 21 16 97 80 18 . 2 . 5 108 12 6 Gun 404 | . 32 199 21 10 52 51 12 . . . . 20 6 1 Cannon 120 | . . . . 6 45 29 6 . . . . 24 5 5 Launcher . | . . . . . . . . . . . . . . . Special 72 | . . . . . . . . . 2 . 5 64 1 . Kinetic 285 | . . 178 21 16 60 . . . . . . . 5 5 Thermal 233 | . 32 15 . . 37 80 18 . . . . 44 6 1 Explosive . | . . . . . . . . . . . . . . . Electromagnetic 6 | . . 6 . . . . . . . . . . . . Robot Hit Streak 17 | . 8 10 7 4 10 17 4 . 5 . 10 14 7 2 Robot Miss Streak 7 | . 2 7 4 5 5 3 2 . . . . 3 2 1 Penetration Max . | . . . . . . . . . . . . . . . Secondary Targets 3 | . 1 1 . . 1 . . . . . . . . . Max Gunslinging Chain 1 | . 1 1 . . 1 . . . . . . . . . Shots Hit Robots 615 | . 25 133 14 10 58 68 99 5 14 . 12 128 37 12 Core Hits 240 | . 9 61 9 5 48 19 28 . 6 . 2 32 12 9 Critical Kills 1 | . . . . . 1 . . . . . . . . . Critical Parts Destroyed 10 | . . 1 . . . 1 5 . . . . . 3 . Critical Strikes 32 | . 1 2 . . 1 6 8 . 2 . 1 3 6 2 Burn 7 | . 1 1 . . . 5 . . . . . . . . Meltdown 1 | . . . . . 1 . . . . . . . . . Destroy 4 | . . 1 . . . . . . . . . . 3 . Smash 6 | . . . . . . 1 5 . . . . . . . Sever 14 | . . . . . . . 3 . 2 . 1 3 3 2 Melee Attacks 320 | . . . . . . 24 121 5 22 . 7 91 39 11 Impact 72 | . . . . . . 24 48 . . . . . . . Slashing 229 | . . . . . . . 60 . 21 . 7 91 39 11 Piercing . | . . . . . . . . . . . . . . . Sneak Attacks 51 | . . . . . . 3 27 4 3 . 2 11 1 . Combat Hostiles 5 | . . . . . . . . 1 . . 2 1 1 . Follow-up Attacks . | . . . . . . . . . . . . . . . Damage Inflicted 15988 | . 307 2336 270 143 1127 1916 4119 . 533 . 370 3036 1356 475 Guns 4864 | . 307 2336 270 123 614 600 160 . . . . 365 66 23 Cannons 1870 | . . . . 20 513 485 136 . . . . 512 104 100 Explosions . | . . . . . . . . . . . . . . . Melee 9254 | . . . . . . 831 3823 . 533 . 370 2159 1186 352 Ramming . | . . . . . . . . . . . . . . . Kinetic 3530 | . . 2178 270 143 735 . . . . . . . 104 100 Thermal 3140 | . 307 94 . . 392 1085 296 . . . . 877 66 23 Explosive . | . . . . . . . . . . . . . . . Electromagnetic 64 | . . 64 . . . . . . . . . . . . Impact 2291 | . . . . . . 831 1460 . . . . . . . Slashing 6963 | . . . . . . . 2363 . 533 . 370 2159 1186 352 Piercing . | . . . . . . . . . . . . . . . Highest Corruption 4 | . 2 . . . . . 1 . 1 . . 4 4 . Average Corruption 1 | . 2 . . . . . 1 . 1 . . 2 3 . Corruption Purged 12 | . . . . . . . 1 . 1 . . 6 4 . Corruption Blocked 6 | . . . . . . . 6 . . . . . . . Effects 44 | . 1 . . . . . 26 . 1 . . 11 5 . Message Errors 11 | . . . . . . . 6 . 1 . . 2 2 . Matter Fused 11 | . . . . . . . 6 . . . . 3 2 . Heat Flow Errors 3 | . . . . . . . 3 . . . . . . . Energy Discharges 6 | . 1 . . . . . 1 . . . . 3 1 . Parts Rejected 1 | . . . . . . . 1 . . . . . . . Parts Fused 1 | . . . . . . . . . . . . 1 . . Data Loss (minor) 8 | . . . . . . . 6 . . . . 2 . . Data Loss (major) 2 | . . . . . . . 2 . . . . . . . Alerts 1 | . . . . . . . 1 . . . . . . . Overload Shots . | . . . . . . . . . . . . . . . Overflow Damage 1690 | . . . . . 4 225 904 . 31 . 15 437 74 . Projectiles 54 | . . . . . 4 7 . . . . . 43 . . Explosions . | . . . . . . . . . . . . . . . Melee 1636 | . . . . . . 218 904 . 31 . 15 394 74 . Knockbacks 21 | . . . . . 2 5 14 . . . . . . . Impact 19 | . . . . . . 5 14 . . . . . . . Kinetic 2 | . . . . . 2 . . . . . . . . . Secondary . | . . . . . . . . . . . . . . . Self-Inflicted Damage . | . . . . . . . . . . . . . . . Shots . | . . . . . . . . . . . . . . . Rammed . | . . . . . . . . . . . . . . . Targets Rammed . | . . . . . . . . . . . . . . . Kicked . | . . . . . . . . . . . . . . . Crushed . | . . . . . . . . . . . . . . . Highest Temperature 314 | . 180 187 18 72 210 269 244 . . . . 314 242 60 Average Temperature 71 | . 73 50 11 37 52 87 66 . . . . 65 110 28 Received Heat Transfer 2942 | . 18 243 36 . 453 729 534 24 61 . 36 212 402 194 Effects 2 | . . . . . . 2 . . . . . . . . Interference 2 | . . . . . . 2 . . . . . . . . Siege Activations . | . . . . . . . . . . . . . . . Robots Corrupted . | . . . . . . . . . . . . . . . Combat Hostiles . | . . . . . . . . . . . . . . . Parts Fried 12 | . . . . . . 4 6 . . . . 2 . . Impact Corruptions 30 | . . . . . . 10 20 . . . . . . . Robots Melted 1 | . . . . . 1 . . . . . . . . . Combat Hostiles 1 | . . . . . 1 . . . . . . . . . Parts Melted 14 | . 2 1 1 . 3 2 . . . . . 3 . 2 Heat Transferred 6172 | . 904 322 . . 629 2257 481 . . . . 1379 150 50 Parts Sabotaged . | . . . . . . . . . . . . . . . Parts Stolen . | . . . . . . . . . . . . . . . Parts Stripped . | . . . . . . . . . . . . . . . Power Chain Reactions . | . . . . . . . . . . . . . . . Missiles Intercepted . | . . . . . . . . . . . . . . . Alert | -11 -10 -9 -9 -8 -8 -8 -7 -7 -7 -7 -6 -6 -6 -6 ------- Run | Jun Mat Mat Min Mat Gar Mat Fac Low Low Zio Pro Fac Low Low Peak Influence 1154 | . 114 340 275 156 813 461 516 . . . . 1154 . . Initial 395 | . . 48 100 15 101 395 76 . . . . . . . Average 258 | . 64 223 54 103 353 221 182 . . . . 362 . . Maximum Alert Level 4 | . . 1 1 . 3 2 2 . . . . 4 . . Low Security (%) 51 | 100 100 42 89 100 41 58 63 . . . . 34 . . Level 1 28 | . . 57 10 . 23 20 30 . . . . 30 . . Level 2 10 | . . . . . 19 20 6 . . . . 14 . . Level 3 8 | . . . . . 15 . . . . . . 17 . . Level 4 1 | . . . . . . . . . . . . 2 . . Level 5 . | . . . . . . . . . . . . . . . High Security . | . . . . . . . . . . . . . . . Max Security . | . . . . . . . . . . . . . . . Squads Dispatched 54 | . . 1 . . . 2 11 . . . . 40 . . Investigation 9 | . . . . . . . 1 . . . . 8 . . Extermination 16 | . . . . . . . 6 . . . . 10 . . Reinforcement 9 | . . 1 . . . 1 4 . . . . 3 . . Assault 5 | . . . . . . 1 . . . . . 4 . . Garrison 15 | . . . . . . . . . . . . 15 . . Intercept . | . . . . . . . . . . . . . . . Searches Triggered . | . . . . . . . . . . . . . . . Construction Impeded 1 | . . . . . . . . . . . . 1 . . Haulers Reinforced 2 | . . . . . . . 1 . . . . 1 . . Active Scanning Responses . | . . . . . . . . . . . . . . . Cargo Convoy Interrupts 1 | . . . . . . . 1 . . . . . . . Alert ID Control Effect 49 | . . . . . . . . . . . . 48 1 . Stealth | -11 -10 -9 -9 -8 -8 -8 -7 -7 -7 -7 -6 -6 -6 -6 --------- Run | Jun Mat Mat Min Mat Gar Mat Fac Low Low Zio Pro Fac Low Low Distress Signals 9 | . . . 1 . . 3 . . . . . 5 . . Communications Jammed 40 | . . . . . . . . . . . . 40 . . Distress Signals 32 | . . . . . . . . . . . . 32 . . Times Spotted 333 | . 4 37 8 6 27 25 38 15 24 . 7 116 16 10 Peak Tracking Total 8 | . 2 5 5 4 5 4 3 5 8 . 4 7 7 7 Tactical Retreats 19 | . . 3 1 1 1 . 5 1 . . . 7 . . Traps | -11 -10 -9 -9 -8 -8 -8 -7 -7 -7 -7 -6 -6 -6 -6 ------- Run | Jun Mat Mat Min Mat Gar Mat Fac Low Low Zio Pro Fac Low Low Traps Triggered 9 | . 1 . . . 3 . 3 . . . . 2 . . Indirectly . | . . . . . . . . . . . . . . . Trap Hack Attempts . | . . . . . . . . . . . . . . . Triggered . | . . . . . . . . . . . . . . . Disarmed 2 | . . . . . . . . . . . . 2 . . Reprogrammed . | . . . . . . . . . . . . . . . Reused . | . . . . . . . . . . . . . . . Traps Extracted . | . . . . . . . . . . . . . . . Installed . | . . . . . . . . . . . . . . . Triggered 3 | . . . . . . . 2 . . . . 1 . . Machines | -11 -10 -9 -9 -8 -8 -8 -7 -7 -7 -7 -6 -6 -6 -6 ---------- Run | Jun Mat Mat Min Mat Gar Mat Fac Low Low Zio Pro Fac Low Low Machines Disabled 9 | . . . . . 1 2 1 . 1 . . 4 . . Max in Single Turn 1 | . . . . . 1 1 1 . 1 . . 1 . . Garrison Access 4 | . . . . . . 1 1 . . . . 2 . . Garrison Relay 1 | . . . . . 1 . . . . . . . . . Machines Repaired . | . . . . . . . . . . . . . . . Machines Sabotaged . | . . . . . . . . . . . . . . . Overloaded Fab Kills . | . . . . . . . . . . . . . . . Hacking | -11 -10 -9 -9 -8 -8 -8 -7 -7 -7 -7 -6 -6 -6 -6 --------- Run | Jun Mat Mat Min Mat Gar Mat Fac Low Low Zio Pro Fac Low Low Machines Accessed 58 | . 2 8 . 2 2 7 10 . 3 1 . 21 2 . Terminals 27 | . 2 5 . 1 2 5 5 . . . . 7 . . Fabricators 9 | . . . . . . . 3 . . . . 6 . . Repair Stations 3 | . . 1 . . . . 1 . . . . 1 . . Recycling Units 5 | . . 1 . . . . . . . . . 4 . . Scanalyzers 2 | . . 1 . . . 1 . . . . . . . . Garrison Access 6 | . . . . 1 . 1 1 . . . . 3 . . Total Hacks 197 | . 9 24 . 6 3 25 50 . 5 5 . 67 3 . Successful 129 | . 3 14 . 2 2 15 38 . 5 5 . 42 3 . Failed 67 | . 6 10 . 4 1 9 12 . . . . 25 . . Catastrophic 9 | . 2 2 . 1 . 1 1 . . . . 2 . . Database Lockouts 1 | . . . . . . 1 . . . . . . . . Manual 116 | . 7 20 . 5 . 19 21 . . . . 44 . . Terminals 77 | . 9 12 . 3 3 17 14 . . . . 19 . . Fabricators 57 | . . . . . . . 33 . . . . 24 . . Repair Stations 5 | . . 3 . . . . 1 . . . . 1 . . Recycling Units 13 | . . 5 . . . . . . . . . 8 . . Scanalyzers 9 | . . 4 . . . 5 . . . . . . . . Garrison Access 23 | . . . . 3 . 3 2 . . . . 15 . . Terminal Hacks 34 | . 3 3 . . 2 6 4 . 5 5 . 3 3 . Record 5 | . . . . . . . . . 3 . . . 2 . Part Schematic 6 | . . . . . . 1 . . . 5 . . . . Robot Schematic 6 | . 2 1 . . . . 3 . . . . . . . Open Door 3 | . . . . . . . . . 2 . . . 1 . Level Access Points 1 | . . . . . . 1 . . . . . . . . Branch Access Points 2 | . 1 1 . . . . . . . . . . . . Emergency Access Points 1 | . . . . . 1 . . . . . . . . . Terminal Index 1 | . . . . . . . . . . . . 1 . . Unreport Threat 6 | . . 1 . . . 3 1 . . . . 1 . . Disarm Traps 1 | . . . . . . . . . . . . 1 . . Recall Reinforcements 1 | . . . . . . 1 . . . . . . . . Patrol Navigation 1 | . . . . . 1 . . . . . . . . . Fabricator Hacks 36 | . . . . . . . 27 . . . . 9 . . Network Status 1 | . . . . . . . . . . . . 1 . . Load Schematic 19 | . . . . . . . 14 . . . . 5 . . Build 16 | . . . . . . . 13 . . . . 3 . . Repair Station Hacks . | . . . . . . . . . . . . . . . Recycling Unit Hacks . | . . . . . . . . . . . . . . . Scanalyzer 9 | . . 4 . . . 5 . . . . . . . . Insert Component 4 | . . 2 . . . 2 . . . . . . . . Analyze 5 | . . 2 . . . 3 . . . . . . . . Garrison Access Hacks 9 | . . . . 1 . 1 2 . . . . 5 . . Unlock Access 4 | . . . . 1 . 1 . . . . . 2 . . Seal Access 2 | . . . . . . . 1 . . . . 1 . . Coupler Status 3 | . . . . . . . 1 . . . . 2 . . Unauthorized Hacks 41 | . . 7 . 1 . 3 5 . . . . 25 . . Terminals 15 | . . 2 . 1 . 2 2 . . . . 8 . . Track 2 | . . . . . . . . . . . . 2 . . Assimilate 2 | . . . . . . 1 . . . . . 1 . . Botnet 9 | . . 2 . 1 . 1 2 . . . . 3 . . Disrupt 1 | . . . . . . . . . . . . 1 . . Operators 1 | . . . . . . . . . . . . 1 . . Fabricators 7 | . . . . . . . 2 . . . . 5 . . Liberate 1 | . . . . . . . . . . . . 1 . . Haulers 3 | . . . . . . . 1 . . . . 2 . . Download 1 | . . . . . . . . . . . . 1 . . Recompile 2 | . . . . . . . 1 . . . . 1 . . Repair Stations 3 | . . 1 . . . . 1 . . . . 1 . . Mechanics 3 | . . 1 . . . . 1 . . . . 1 . . Recycling Units 8 | . . 4 . . . . . . . . . 4 . . Monitor 2 | . . 1 . . . . . . . . . 1 . . Reject 2 | . . 1 . . . . . . . . . 1 . . Recyclers 2 | . . 1 . . . . . . . . . 1 . . Mask 2 | . . 1 . . . . . . . . . 1 . . Scanalyzers . | . . . . . . . . . . . . . . . Garrison Access 8 | . . . . . . 1 . . . . . 7 . . Broadcast 1 | . . . . . . . . . . . . 1 . . Restock 1 | . . . . . . . . . . . . 1 . . Reprogram 1 | . . . . . . 1 . . . . . . . . Intercept 2 | . . . . . . . . . . . . 2 . . Watchers 1 | . . . . . . . . . . . . 1 . . Eject 2 | . . . . . . . . . . . . 2 . . Data Cores Recovered 1 | . . . . . . . . . . . . 1 . . Used . | . . . . . . . . . . . . . . . Hacking Detections 42 | . 2 7 . 2 2 4 6 . . . . 19 . . Full Trace Events 5 | . . . . 1 . . . . . . . 4 . . Feedback Events . | . . . . . . . . . . . . . . . Feedback Blocked . | . . . . . . . . . . . . . . . Robot Schematics Acquired 6 | . 2 1 . . . . 3 . . . . . . . Robots Built 29 | . . . . . . . 24 . . . . 5 . . Authchips 14 | . . . . . . . 13 . . . . 1 . . Time 1018 | . . . . . . . 844 . . . . 174 . . Total Robot Build Rating 110 | . . . . . . . 93 . . . . 17 . . Part Schematics Acquired 10 | . . 2 . . . 2 . . . 5 . 1 . . Parts Built . | . . . . . . . . . . . . . . . Authchips . | . . . . . . . . . . . . . . . Time . | . . . . . . . . . . . . . . . Total Part Build Rating . | . . . . . . . . . . . . . . . Parts Repaired . | . . . . . . . . . . . . . . . Time . | . . . . . . . . . . . . . . . Parts Recycled . | . . . . . . . . . . . . . . . Recycled Matter . | . . . . . . . . . . . . . . . Retrieved Matter . | . . . . . . . . . . . . . . . Retrieved Components . | . . . . . . . . . . . . . . . Parts Scanalyzed 4 | . . 2 . . . 2 . . . . . . . . Part Schematics Acquired 3 | . . 2 . . . 1 . . . . . . . . Parts Damaged . | . . . . . . . . . . . . . . . Bothacking | -11 -10 -9 -9 -8 -8 -8 -7 -7 -7 -7 -6 -6 -6 -6 ------------ Run | Jun Mat Mat Min Mat Gar Mat Fac Low Low Zio Pro Fac Low Low Used RIF Installer 2 | . . . . . 2 . . . . . . . . . Alert ID Control 1 | . . . . . 1 . . . . . . . . . Robots Hacked 40 | . . . . . . . 11 1 2 . . 25 1 . Non-combat 21 | . . . . . . . 11 . 1 . . 9 . . Combat 19 | . . . . . . . . 1 1 . . 16 1 . Robot Hacks Applied 45 | . . . . . . . 12 1 2 . . 29 1 . parse_system 2 | . . . . . . . . 1 1 . . . . . no_distress 1 | . . . . . . . 1 . . . . . . . find_chute 3 | . . . . . . . 2 . . . . 1 . . ignore_repairs 5 | . . . . . . . 4 . . . . 1 . . find_recycling 2 | . . . . . . . . . . . . 2 . . purge_threat 3 | . . . . . . . . . . . . 3 . . block_reporting 1 | . . . . . . . . . . . . 1 . . clear_recycling 1 | . . . . . . . . . . . . 1 . . reboot_propulsion 1 | . . . . . . . . . . . . 1 . . reboot_system 1 | . . . . . . . . . . . . 1 . . go_dormant 1 | . . . . . . . . . . . . 1 . . overwrite_iff 5 | . . . . . . . . . . . . 4 1 . formatsys_low 10 | . . . . . . . 5 . 1 . . 4 . . formatsys_high 9 | . . . . . . . . . . . . 9 . . Relay Couplers Released 25 | . . . . . 4 3 2 . . . . 16 . . Ejected 3 | . . . . . . . . . . . . 3 . . Machine Destruction 9 | . . . . . 4 3 2 . . . . . . . Programmers 13 | . . . . . . . . . . . . 13 . . Attached 14 | . . . . . . . 2 . . . . 12 . . Fabnet Peak Effective % . | . . . . . . . . . . . . . . . Robots Rewired 7 | . . . . . . . . 1 2 . 2 . 2 . Allies Hacked 4 | . . . . . . . . . . . . 4 . . Hacks Repelled 1 | . . . . . . . . . . . . 1 . . Allies | -11 -10 -9 -9 -8 -8 -8 -7 -7 -7 -7 -6 -6 -6 -6 -------- Run | Jun Mat Mat Min Mat Gar Mat Fac Low Low Zio Pro Fac Low Low Total Allies 80 | . . . 4 . . 1 28 1 3 . 2 38 3 . Largest Group 24 | . . . 4 . . 1 24 23 20 19 19 20 6 4 Highest-Rated Group 757 | . . . 71 . . 10 757 690 584 513 513 568 187 124 Highest-Rated Ally 47 | . . . 31 . . 10 40 40 40 40 40 47 40 40 Total Orders 195 | . . . . . . 2 43 1 5 . 1 126 15 2 STAY 114 | . . . . . . 1 32 . 1 . . 76 4 . FOLLOW 49 | . . . . . . 1 7 . 1 . . 34 6 . AID 30 | . . . . . . . 4 1 3 . 1 14 5 2 DROP 1 | . . . . . . . . . . . . 1 . . PICKUP 1 | . . . . . . . . . . . . 1 . . Ally Attacks 698 | . . . 30 . . . 39 36 66 . 32 462 26 7 Total Damage 22445 | . . . 315 . . . 1170 2021 2709 . 1313 13882 841 194 Kills 166 | . . . 4 . . . 10 19 28 . 6 94 5 . Allies Corrupted . | . . . . . . . . . . . . . . . Allies Melted 1 | . . . . . . . . . . . 1 . . . Intel | -11 -10 -9 -9 -8 -8 -8 -7 -7 -7 -7 -6 -6 -6 -6 ------- Run | Jun Mat Mat Min Mat Gar Mat Fac Low Low Zio Pro Fac Low Low Robot Analysis Total . | . . . . . . . . . . . . . . . Derelict Logs Recovered 6 | . . . 1 . . . . 2 1 . 2 . . . Drone Launches . | . . . . . . . . . . . . . . . Drone Recoveries . | . . . . . . . . . . . . . . . Exploration | -11 -10 -9 -9 -8 -8 -8 -7 -7 -7 -7 -6 -6 -6 -6 ------------- Run | Jun Mat Mat Min Mat Gar Mat Fac Low Low Zio Pro Fac Low Low Turns Passed 24539 | 48 334 1296 1961 292 1679 1108 4923 981 1697 179 850 7992 1148 51 Spaces Moved 16023 | 41 296 861 370 128 796 701 3334 860 1110 125 528 6147 721 5 Core 6 | 4 . . . . . 2 . . . . . . . . Treads 897 | . . . 89 128 680 . . . . . . . . . Legs 140 | . . . . . 65 . 75 . . . . . . . Wheels 14972 | 37 296 853 281 . 51 699 3259 860 1110 125 528 6147 721 5 Hover . | . . . . . . . . . . . . . . . Flight 8 | . . 8 . . . . . . . . . . . . Fastest Speed 50 | 50 90 90 95 160 95 95 90 90 90 105 95 100 100 100 Average Speed 106 | 86 90 99 110 202 181 108 106 90 94 105 108 100 100 103 Slowest Speed 550 | 100 90 275 160 240 260 550 400 90 105 105 115 115 100 115 Overloaded Moves . | . . . . . . . . . . . . . . . Propulsion Burnouts . | . . . . . . . . . . . . . . . Robots Hopped . | . . . . . . . . . . . . . . . Cave-ins Triggered . | . . . . . . . . . . . . . . . Exploration Rate (%) 48 | 4 45 64 78 15 77 40 34 83 91 13 64 45 66 4 Regions Visited 14 Branch Regions 7 Pre-discovered Areas 1 | . . . . . . . . . . . 1 . . . Known Exits Taken 10 | . . 1 1 1 . 1 1 1 1 1 1 1 . . Unknown Exits Taken 3 | 1 1 . . . . . . . . . . . 1 . Scrap Searched 13 | . . . 1 . . . . 2 3 . 2 . 5 . Spaces Dug 42 | . . . . . . 2 6 . 7 . . 27 . . Terrain Destroyed 49 | . . . . . . 3 6 . 7 . . 29 2 2 Melee 42 | . . . . . . 2 6 . 7 . . 27 . . Projectile 7 | . . . . . . 1 . . . . . 2 2 2 AOE . | . . . . . . . . . . . . . . . Terrain Rammed . | . . . . . . . . . . . . . . . Walls Destroyed . | . . . . . . . . . . . . . . . Machines Disabled . | . . . . . . . . . . . . . . . Actions | -11 -10 -9 -9 -8 -8 -8 -7 -7 -7 -7 -6 -6 -6 -6 --------- Run | Jun Mat Mat Min Mat Gar Mat Fac Low Low Zio Pro Fac Low Low Total 22480 | 50 330 1103 1903 144 932 927 4476 1064 1713 172 790 7774 1076 26 Wait 5298 | . 9 87 1507 1 27 91 931 198 532 48 244 1346 277 . Move 16010 | 40 295 860 369 128 795 700 3333 859 1109 124 527 6146 720 5 Hop . | . . . . . . . . . . . . . . . Pick Up 96 | 4 6 13 4 3 16 4 11 1 6 . 2 23 3 . Fast Attach 64 | 6 2 11 1 1 7 9 18 . 3 . . 4 2 . Attach 44 | . . . 2 1 4 1 14 1 . . 1 16 2 2 Detach 4 | . . . . . . . . . . . . 3 1 . Swap 98 | . . 10 3 1 12 9 15 . 9 . 2 30 4 3 Drop 89 | . 1 21 5 1 14 12 10 . 8 . 2 13 2 . Fire 409 | . 17 101 12 8 55 77 18 . 2 . 5 102 7 5 Melee 320 | . . . . . . 24 121 5 22 . 7 91 39 11 Ram . | . . . . . . . . . . . . . . . Kick . | . . . . . . . . . . . . . . . Crush . | . . . . . . . . . . . . . . . Escape Stasis 2 | . . . . . 2 . . . . . . . . . Rewire 46 | . . . . . . . 5 . 22 . . . 19 . Trap . | . . . . . . . . . . . . . . . Miscellaneous . | . . . . . . . . . . . . . . . Route ------- -11/Junkyard -10/Materials (discovered 3 exits: *Mat / Min / [*Sub]) -9/Materials (discovered 3 exits: *Mat x2 / *Min) -9/Mines (discovered 3 exits: *Mat x2 / *Zio) -8/Materials -8/Garrison (discovered 3 exits: *Mat x3) -8/Materials (discovered 3 exits: *Fac x3) -7/Factory -7/Lower Caves (discovered 2 exits: *Low / *Zio) -7/Lower Caves (discovered 2 exits: *Fac / *Zio) -7/Zion -6/Proximity Caves -6/Factory (discovered 6 exits: *Fac x3 / *Low x2 / Gar) -6/Lower Caves -6/Lower Caves History --------- Turn | Location | Event 13 | -11/Junkyard | Discovered new exit (range 15) 49 | -11/Junkyard | Entered Materials 206 | -10/Materials | Identified exit to Mines 212 | -10/Materials | Discovered new exit (range 13) 309 | -10/Materials | Build established: Mutant 377 | -10/Materials | Discovered new exit (range 11) 383 | -10/Materials | Entered another Materials area 383 | -9/Materials | Evolved 2 slots: Utility x2 756 | -9/Materials | Discovered new exit (range 5) 762 | -9/Materials | Identified exit to Materials 1033 | -9/Materials | Discovered exit to Materials (range 9) 1437 | -9/Materials | Discovered new exit (range 16) 1456 | -9/Materials | Identified exit to Mines 1679 | -9/Materials | Entered Mines 1682 | -9/Mines | Received a Mining Laser from a helpful Derelict 1722 | -9/Mines | Assisted by bots powering up and referring to "LRC-V3" 1872 | -9/Mines | Discovered exit to Materials (range 15) 1925 | -9/Mines | A Derelict revealed a hidden shortcut to a safe place 1927 | -9/Mines | Identified exit to Zion 1958 | -9/Mines | Discovered exit to Materials (range 13) 1962 | -9/Mines | Excavation squad dispatched 1962 | -9/Mines | A large section of the Mines collapsed 2212 | -9/Mines | Excavation squad dispatched 2462 | -9/Mines | Excavation squad dispatched 2712 | -9/Mines | Excavation squad dispatched 2962 | -9/Mines | Excavation squad dispatched 3212 | -9/Mines | Excavation squad dispatched 3640 | -9/Mines | Entered Materials 3640 | -8/Materials | Evolved 2 slots: Utility x2 3932 | -8/Materials | Identified exit to Garrison 3932 | -8/Materials | Entered Garrison 4076 | -8/Garrison | Triggered checkpoint 4214 | -8/Garrison | Triggered checkpoint 4327 | -8/Garrison | Installed Relay Interface Framework 4501 | -8/Garrison | Discovered new exit (range 15) 4582 | -8/Garrison | Triggered checkpoint 4682 | -8/Garrison | Triggered checkpoint 4812 | -8/Garrison | Triggered checkpoint 4822 | -8/Garrison | Discovered new exit (range 15) 4845 | -8/Garrison | Identified exit to Materials 4936 | -8/Garrison | Lost 3 parts (1n2u) 5170 | -8/Garrison | Triggered checkpoint 5180 | -8/Garrison | Build established: Scavenger-Mutant 5221 | -8/Garrison | Lost 4 parts (1n3w) 5328 | -8/Garrison | Triggered checkpoint 5430 | -8/Garrison | Expanded RIF knowledge: Alert ID Control 5569 | -8/Garrison | Garrison Relay disabled 5602 | -8/Garrison | Discovered exit to Materials (range 11) 5611 | -8/Garrison | Entered Materials 5962 | -8/Materials | Identified exit to Garrison 6105 | -8/Materials | Central database locked down 6128 | -8/Materials | Identified exit to Factory 6191 | -8/Materials | Core integrity fell below 50% 6224 | -8/Materials | Lost 5 parts (1p2n1u1w) 6441 | -8/Materials | Build established: Mutant 6719 | -8/Materials | Entered Factory 6719 | -7/Factory | Evolved 2 slots: Propulsion x1, Utility x1 7499 | -7/Factory | P-60 Hacker assimilated allied Administrator 4a 7963 | -7/Factory | Lost 3 parts (1n2u) 7966 | -7/Factory | Cargo convoy interrupted 9364 | -7/Factory | Fabricated Y-54 Guardian (x2) 9438 | -7/Factory | Fabricated Y-54 Guardian? 9561 | -7/Factory | Fabricated Y-54 Guardian? 9647 | -7/Factory | Fabricated Y-54 Guardian? 9733 | -7/Factory | Build established: Commander-Mutant 9780 | -7/Factory | Fabricated Y-54 Guardian? 9870 | -7/Factory | Fabricated Y-54 Guardian? 9966 | -7/Factory | Fabricated Y-54 Guardian? 10097 | -7/Factory | Fabricated I-36 Angel? 10191 | -7/Factory | Fabricated Y-54 Guardian? 10290 | -7/Factory | Fabricated Y-54 Guardian? 10980 | -7/Factory | Fabricated M-13 Machinist? 11072 | -7/Factory | Fabricated P-60 Hacker? 11147 | -7/Factory | Fabricated P-60 Hacker? 11595 | -7/Factory | Discovered new exit (range 6) 11613 | -7/Factory | Identified exit to Lower Caves 11642 | -7/Factory | Entered Lower Caves 11642 | -7/Lower Caves | Accompanied by 23 allies 11721 | -7/Lower Caves | Encountered a Warlord checkpoint 12020 | -7/Lower Caves | Attracted the attention of an 0b10 outpost 12228 | -7/Lower Caves | Learned location of 1 exit from Factory 12270 | -7/Lower Caves | A Derelict revealed a hidden shortcut to a safe place 12347 | -7/Lower Caves | Learned location of 1 exit from Proximity Caves 12393 | -7/Lower Caves | Discovered new exit (range 11) 12401 | -7/Lower Caves | Identified exit to Lower Caves 12420 | -7/Lower Caves | Attracted the attention of an 0b10 checkpoint 12623 | -7/Lower Caves | Entered another Lower Caves area 12623 | -7/Lower Caves | Accompanied by 20 allies 12638 | -7/Lower Caves | Learned location of 1 exit from Proximity Caves 12645 | -7/Lower Caves | Found Imp. Powered Armor 12787 | -7/Lower Caves | Discovered new exit (range 7) 12792 | -7/Lower Caves | Identified exit to Factory 12874 | -7/Lower Caves | Learned 8 Factory zone layouts 12874 | -7/Lower Caves | Learned Research security intel 13214 | -7/Lower Caves | Attracted the attention of an 0b10 checkpoint 13358 | -7/Lower Caves | Found Prototype Device 13618 | -7/Lower Caves | Attracted the attention of an 0b10 outpost 14114 | -7/Lower Caves | Discovered exit to Zion (range 10) 14320 | -7/Lower Caves | Entered Zion 14320 | -7/Zion | Accompanied by 19 allies 14380 | -7/Zion | Discovered new exit (range 11) 14448 | -7/Zion | Identified exit to Proximity Caves 14499 | -7/Zion | Entered Proximity Caves 14499 | -6/Proximity Caves | Accompanied by 19 allies 14615 | -6/Proximity Caves | Spotted B-75 Beast 14631 | -6/Proximity Caves | Allies destroyed B-75 Beast 14793 | -6/Proximity Caves | Attracted the attention of an 0b10 outpost 15349 | -6/Proximity Caves | Entered Factory 15349 | -6/Factory | Accompanied by 18 allies 15349 | -6/Factory | Evolved 2 slots: Propulsion x1, Utility x1 15350 | -6/Factory | Identified exit to Factory 15350 | -6/Factory | Identified exit to Lower Caves 15593 | -6/Factory | Spotted B-75 Beast 15654 | -6/Factory | P-60 Hacker assimilated allied Fighter 4a 17965 | -6/Factory | Garrison activated, responded to threat 18687 | -6/Factory | Fabricated P-60 Hacker? 19225 | -6/Factory | Identified exit to Garrison 19799 | -6/Factory | Garrison activated, responded to threat 20514 | -6/Factory | Hacker 5b assimilated hostile Y-54 Guardian 20530 | -6/Factory | Hacker 5a assimilated hostile Y-54 Guardian 20688 | -6/Factory | Fabricated M-13 Machinist? 20757 | -6/Factory | Core integrity fell below 50% 21649 | -6/Factory | First assault squad dispatched 22190 | -6/Factory | Identified exit to Garrison 22818 | -6/Factory | Garrison activated, responded to threat 22889 | -6/Factory | Hacker 5b assimilated hostile X-62 Marksman 23128 | -6/Factory | Fabricated P-60 Hacker (x2) 23140 | -6/Factory | P-60 Hacker assimilated allied Virus 5a 23258 | -6/Factory | Build established: Bothacker-Mutant 23341 | -6/Factory | Entered Lower Caves 23341 | -6/Lower Caves | Accompanied by 6 allies 23532 | -6/Lower Caves | Attracted the attention of an 0b10 outpost 23831 | -6/Lower Caves | Attracted the attention of an 0b10 checkpoint 24189 | -6/Lower Caves | P-60 Hacker assimilated allied Sweeper 4a 24432 | -6/Lower Caves | Discovered new exit (range 14) 24489 | -6/Lower Caves | Entered another Lower Caves area 24489 | -6/Lower Caves | Accompanied by 4 allies 24500 | -6/Lower Caves | Spotted B-75 Beast 24524 | -6/Lower Caves | Core integrity fell below 20% 24540 | -6/Lower Caves | Destroyed by S-27 Virus with Autogun Last Messages --------------- 24514_ Carbon-fiber Leg fries itself beyond repair. 24515_ Angel 4a suffers critical hit (Burn). 24515_ Angel 4a destroyed. 24516_ G-67 Veteran Lgt. Antimatter Reactor severed. 24517_ Adv. Heat Sink fries itself beyond repair. 24518_ Mic. Fission Core destroyed. 24519_ Carbon-fiber Leg fries itself beyond repair. 24521_ Power Sword destroyed. 24523_ Smith 5b suffers critical hit (Burn). 24525_ Hvy. Laser fries itself beyond repair. 24526_ Smith 5b destroyed. 24527_ Arm. Huge Wheel destroyed. 24527_ G-67 Veteran destroyed. 24530_ Imp. Powered Armor destroyed. 24530_ Slug penetrates S-27 Virus. 24530_ S-27 Virus destroyed. 24531_ Adv. Heat Sink fries itself beyond repair. 24532_ S-27 Virus destroyed. 24537_ G-50 Soldier Carbon-fiber Leg severed. 24539_ Field Laser fries itself beyond repair. Map ----- +----------------------------------------------------+ | ?????????????????????????????????????????????????? | | ?????????????????????????????????????????????????? | | ?????????????????????????????????????????????????? | | ?????????????????????????????????????????????????? | | ?????????????????????????????????????????????????? | | ?????????????????????????????????????????????????? | | ?????????????????????????????????????????????????? | | ?????????????????????????????????????????????????? | | ?????????????????????????????????????????????????? | | ?????????????????????????????????????????????????? | | ?????????????????????????????????????????????????? | | ?????????????????????????????????????????????????? | | ?????????????????????????????????????????????????? | | ?????????????????????????????????????????????????? | | ???????????????????#########?????????????????????? | | ???????????????????##########????????????????????? | | ???????????????????## ## ###????????????????????? | | ??????????????????### ########?? ???????????? | | ??????????????????### ######## ????????????? | | ??????????????????## %!%#### ??????????????? | | ??????????????????### %* ## ##????????????????? | | ???????????????????### ###????????????????? | | ????????????????????### ##?????????????????? | | ???????????????????#### % ###?????????????????? | | ???????????????????### g ! ###?????????????????? | | ???????????????????## g @ s###??????????????????? | | ???????????????????### ##s*###??????????????????? | | ???????????????????### ##%%##???????????????????? | | ????????????????????## # [%# ???????????????????? | | ????????????????????## ???????????????????? | | ???????????????????? =%[ ???????????????????? | | ????????????????????? = ??????????????????? | | ???????????????????? ##???????????????? | | ???????????????????? ##???????????????? | | ???????????????????? ???????????????? | | ??????????????????# % ???????????????? | | ??????????????????## # "### ??????????????? | | ??????????????????## ## ##### ??????????????? | | ??????????????????????## ##?##" ????????????????? | | ??????????????????????## ???????????????????????? | | ??????????????????????## ???????????????????????? | | ?????????????????????????????????????????????????? | | ?????????????????????????????????????????????????? | | ?????????????????????????????????????????????????? | | ?????????????????????????????????????????????????? | | ?????????????????????????????????????????????????? | | ?????????????????????????????????????????????????? | | ?????????????????????????????????????????????????? | | ?????????????????????????????????????????????????? | | ?????????????????????????????????????????????????? | +----------------------------------------------------+ Best States ------------- Heat Dissipation 48 Energy Generation 18 Energy Capacity 310 Matter Stores 300 Matter Capacity 300 Sight Range 18 Terrain Scan Density 10 ECM Strength 2 Jamming Range 14 Armor Coverage 450 Resistance: EM 15 Propulsion Shielding 66 Utility Shielding 66 Evasion (%) 42 Targeting Accuracy 6 Recoil Reduction 2 Offensive Hacking 21 Defensive Hacking 22 Relay Coupler Types 3 Relay Coupler Value 62 Authchip Count 12 Item Schematics ----------------- Huge Storage Unit | -9/Materials | Scanalyzed Signal Interpreter | -9/Materials | Scanalyzed Lgt. Treads | -8/Materials | Scanalyzed Hacking Suite | -8/Materials | Hacked Hvy. Beamcaster | -7/Zion | Free Hvy. Riot Gun | -7/Zion | Free Battle Rifle | -7/Zion | Free Slug Cannon | -7/Zion | Free Ripper | -7/Zion | Free Adv. Melee Analysis Suite | -6/Factory | Downloaded Robot Schematics ------------------ M-13 Machinist | -10/Materials | Hacked O-16 Technician | -10/Materials | Hacked I-25 Savior | -9/Materials | Hacked Y-54 Guardian | -7/Factory | Hacked I-36 Angel | -7/Factory | Hacked P-60 Hacker | -7/Factory | Hacked Fabricated ------------ Y-54 Guardian | x2 | -7/Factory | Authchip Y-54 Guardian | x2 | -7/Factory | Authchip Y-54 Guardian | x2 | -7/Factory | Authchip Y-54 Guardian | x2 | -7/Factory | Authchip Y-54 Guardian | x2 | -7/Factory | Authchip Y-54 Guardian | x2 | -7/Factory | Authchip Y-54 Guardian | x2 | -7/Factory | Authchip I-36 Angel | x1 | -7/Factory | Authchip Y-54 Guardian | x2 | -7/Factory | Authchip Y-54 Guardian | x2 | -7/Factory | Authchip M-13 Machinist | x1 | -7/Factory | Authchip P-60 Hacker | x2 | -7/Factory | Authchip P-60 Hacker | x2 | -7/Factory | Authchip P-60 Hacker | x2 | -6/Factory | Authchip M-13 Machinist | x1 | -6/Factory P-60 Hacker | x2 | -6/Factory Alien Tech Used ----------------- None Achievements -------------- None Challenges ------------ None Game ------ Seed AngularAntimissileActivator Manual? 0 Play Time 03:53:50 Cumulative 358.0 hours Start 2023.09.22 @ 08:57:01 End 2023.09.22 @ 12:53:21 Sessions 1 Manual Loads 0 Difficulty Rogue Special Mode None Game No. 222 Rogue 219 Adventurer 3 Explorer 0 Win Type - Total 7 Types 6/0/1/0/0/0/0/0/0 Lore% 69 Gallery% 75 Achievement% 66 Wizard Run 0 Options --------- ASCII 0 Keyboard 0 Movement Numpad Keybinds 0 Fullscreen 1 Font 18/SmallcapsGlow Map View 76x50 Tactical HUD 1 Map Filters NONE Filters NONE Steam 1 RUN: c4655ac4-67bb-4be7-b16a-dbbf921d72ab